[Event "*** Titled Tuesday Blitz"]
[Site "Chess.com"]
[Date "2020.05.19"]
[Round "6"]
[White "ManuDavid2910"]
[Black "cukus"]
[Result "1-0"]
[WhiteElo "2692"]
[BlackElo "2493"]
[TimeControl "180+1"]
[EndTime "13:09:40 PDT"]
[Termination "ManuDavid2910 won by resignation"]

1. e4 {[%clk 0:03:00.9]} 1... c6 {[%clk 0:02:50.3]} 2. Nf3 {[%clk 0:03:00.6]}
2... d5 {[%clk 0:02:49.3]} 3. Nc3 {[%clk 0:03:01.5]} 3... dxe4 {[%clk
0:02:48.3]} 4. Nxe4 {[%clk 0:03:02.4]} 4... Nf6 {[%clk 0:02:48.8]} 5. Neg5
{[%clk 0:03:02.6]} 5... h6 {[%clk 0:02:46]} 6. Nxf7 {[%clk 0:03:02.8]} 6... Kxf7
{[%clk 0:02:46.1]} 7. Ne5+ {[%clk 0:03:03.3]} 7... Kg8 {[%clk 0:02:46.3]} 8. Ng6
{[%clk 0:03:03.3]} 8... Rh7 {[%clk 0:02:43.8]} 9. Bd3 {[%clk 0:03:00.4]} 9... e5
{[%clk 0:02:30.5]} 10. Nxe5 {[%clk 0:02:55.7]} 10... Be6 {[%clk 0:02:23.9]} 11.
O-O {[%clk 0:02:53.8]} 11... Nbd7 {[%clk 0:02:04]} 12. Bxh7+ {[%clk 0:02:49]}
12... Kxh7 {[%clk 0:02:03.9]} 13. Nf3 {[%clk 0:02:47.4]} 13... Bg4 {[%clk
0:01:59.2]} 14. d4 {[%clk 0:02:46.9]} 14... g6 {[%clk 0:01:52.7]} 15. Bf4 {[%clk
0:02:44.7]} 15... Bg7 {[%clk 0:01:46.7]} 16. Qd3 {[%clk 0:02:42.7]} 16... Bf5
{[%clk 0:01:46]} 17. Qb3 {[%clk 0:02:42.3]} 17... Nb6 {[%clk 0:01:44.9]} 18. c4
{[%clk 0:02:35.1]} 18... Be6 {[%clk 0:01:28.2]} 19. Rac1 {[%clk 0:02:29.5]}
19... Qg8 {[%clk 0:01:22.7]} 20. Nd2 {[%clk 0:02:16.7]} 20... Nxc4 {[%clk
0:01:13.6]} 21. Nxc4 {[%clk 0:02:17.6]} 21... b5 {[%clk 0:01:13.6]} 22. Qa3
{[%clk 0:02:04.5]} 22... Bxc4 {[%clk 0:01:10.1]} 23. Rfe1 {[%clk 0:02:04.4]}
23... a5 {[%clk 0:01:00.1]} 24. Qc5 {[%clk 0:02:01.3]} 24... Bd5 {[%clk
0:00:57.5]} 25. Re7 {[%clk 0:01:57.2]} 25... Re8 {[%clk 0:00:52.7]} 26. Rce1
{[%clk 0:01:54.5]} 26... Rxe7 {[%clk 0:00:52.7]} 27. Rxe7 {[%clk 0:01:55.4]}
27... Qf8 {[%clk 0:00:49]} 28. Be5 {[%clk 0:01:51.2]} 28... Kg8 {[%clk
0:00:37.9]} 29. Qd6 {[%clk 0:01:44.6]} 29... Ne8 {[%clk 0:00:27.1]} 30. Qd7
{[%clk 0:01:17.5]} 30... Bxe5 {[%clk 0:00:25.7]} 31. Rxe8 {[%clk 0:01:16.5]}
31... Bg7 {[%clk 0:00:21.2]} 32. Rxf8+ {[%clk 0:01:14.4]} 32... Bxf8 {[%clk
0:00:22.1]} 33. h4 {[%clk 0:01:01.7]} 33... a4 {[%clk 0:00:20.2]} 34. g4 {[%clk
0:00:59.2]} 34... Bg7 {[%clk 0:00:20.2]} 35. b3 {[%clk 0:00:39.9]} 35... axb3
{[%clk 0:00:18.4]} 36. axb3 {[%clk 0:00:40.8]} 36... Bxd4 {[%clk 0:00:18.7]} 37.
Kf1 {[%clk 0:00:35.9]} 37... Bf6 {[%clk 0:00:18.2]} 38. g5 {[%clk 0:00:32.2]}
38... hxg5 {[%clk 0:00:18.2]} 39. hxg5 {[%clk 0:00:33.1]} 39... Bxg5 {[%clk
0:00:18.7]} 40. Qg4 {[%clk 0:00:33]} 40... Bf6 {[%clk 0:00:17.8]} 41. Qxg6+
{[%clk 0:00:33.1]} 41... Bg7 {[%clk 0:00:18.5]} 42. f4 {[%clk 0:00:32.5]} 42...
Bxb3 {[%clk 0:00:17.4]} 43. Qxc6 {[%clk 0:00:29.2]} 43... Bc4+ {[%clk
0:00:17.8]} 44. Kf2 {[%clk 0:00:29.4]} 44... Bd4+ {[%clk 0:00:17.4]} 45. Kg3
{[%clk 0:00:29.5]} 45... Bg7 {[%clk 0:00:17.5]} 46. Kg4 {[%clk 0:00:29.1]} 46...
Kf8 {[%clk 0:00:17.5]} 47. Kg5 {[%clk 0:00:28.6]} 47... Bc3 {[%clk 0:00:15.6]}
48. f5 {[%clk 0:00:27.4]} 48... Bd2+ {[%clk 0:00:15.2]} 49. Kh5 {[%clk
0:00:25.6]} 49... Be2+ {[%clk 0:00:14.9]} 50. Kg6 {[%clk 0:00:25.7]} 50... Bc4
{[%clk 0:00:10.4]} 51. Qd6+ {[%clk 0:00:24.3]} 51... Ke8 {[%clk 0:00:09.3]} 52.
Qxd2 {[%clk 0:00:25.2]} 1-0

[Event "*** Titled Tuesday Blitz"]
[Site "Chess.com"]
[Date "2020.05.19"]
[Round "6"]
[White "plumalka"]
[Black "Roman_Ovetchkin"]
[Result "0-1"]
[WhiteElo "2480"]
[BlackElo "2631"]
[TimeControl "180+1"]
[EndTime "13:09:40 PDT"]
[Termination "Roman_Ovetchkin won by resignation"]

1. e4 {[%clk 0:03:00.9]} 1... c6 {[%clk 0:02:59.7]} 2. d4 {[%clk 0:03:00.6]}
2... d5 {[%clk 0:03:00.6]} 3. e5 {[%clk 0:03:00.2]} 3... Bf5 {[%clk 0:03:00.2]}
4. c4 {[%clk 0:03:00.1]} 4... e6 {[%clk 0:02:59.6]} 5. Nc3 {[%clk 0:03:00.4]}
5... Ne7 {[%clk 0:02:59.1]} 6. a3 {[%clk 0:03:00.9]} 6... dxc4 {[%clk
0:02:58.3]} 7. Bxc4 {[%clk 0:03:00.3]} 7... Nd7 {[%clk 0:02:58.9]} 8. Nge2
{[%clk 0:03:00]} 8... Nb6 {[%clk 0:02:59]} 9. Bb3 {[%clk 0:03:00.3]} 9... Ned5
{[%clk 0:02:59]} 10. O-O {[%clk 0:02:59.2]} 10... Be7 {[%clk 0:02:58.6]} 11. Ng3
{[%clk 0:02:59.1]} 11... Bg6 {[%clk 0:02:58.7]} 12. f4 {[%clk 0:02:54.3]} 12...
Qd7 {[%clk 0:02:58.6]} 13. Kh1 {[%clk 0:02:40.7]} 13... O-O {[%clk 0:02:55]} 14.
Qf3 {[%clk 0:02:29.9]} 14... Rad8 {[%clk 0:02:50.6]} 15. Nce4 {[%clk 0:02:09.4]}
15... Nc7 {[%clk 0:02:37.2]} 16. Be3 {[%clk 0:02:07.4]} 16... Nbd5 {[%clk
0:02:35.7]} 17. Bg1 {[%clk 0:02:05.5]} 17... f6 {[%clk 0:02:13.9]} 18. exf6
{[%clk 0:01:50.9]} 18... Bxf6 {[%clk 0:02:12.4]} 19. Nc5 {[%clk 0:01:40.1]}
19... Qc8 {[%clk 0:02:12.1]} 20. Rae1 {[%clk 0:01:37.4]} 20... Kh8 {[%clk
0:01:37.3]} 21. Nh5 {[%clk 0:01:16.3]} 21... Be7 {[%clk 0:01:35]} 22. Nd3 {[%clk
0:01:06.9]} 22... Bd6 {[%clk 0:01:29.1]} 23. Ne5 {[%clk 0:01:01.9]} 23... Bxe5
{[%clk 0:01:28.2]} 24. Rxe5 {[%clk 0:01:01.4]} 24... Rf5 {[%clk 0:01:21.8]} 25.
g4 {[%clk 0:00:48.3]} 25... Rxe5 {[%clk 0:01:16.8]} 26. fxe5 {[%clk 0:00:42.3]}
26... Kg8 {[%clk 0:01:07.1]} 27. Bc2 {[%clk 0:00:35.7]} 27... Rf8 {[%clk
0:01:03]} 28. Qxf8+ {[%clk 0:00:32.3]} 28... Qxf8 {[%clk 0:01:02.7]} 29. Rxf8+
{[%clk 0:00:33.2]} 29... Kxf8 {[%clk 0:01:03.2]} 30. Bxg6 {[%clk 0:00:33.4]}
30... hxg6 {[%clk 0:01:04]} 31. Ng3 {[%clk 0:00:33.6]} 31... Nf4 {[%clk
0:00:51.8]} 32. Be3 {[%clk 0:00:29.7]} 32... Nd3 {[%clk 0:00:49.3]} 33. b3
{[%clk 0:00:26.4]} 33... Nd5 {[%clk 0:00:49.3]} 34. Bd2 {[%clk 0:00:25.6]} 34...
c5 {[%clk 0:00:48.5]} 35. dxc5 {[%clk 0:00:24.6]} 35... Nxc5 {[%clk 0:00:47.3]}
36. b4 {[%clk 0:00:23.6]} 36... Nd3 {[%clk 0:00:47.5]} 37. Kg2 {[%clk
0:00:23.2]} 37... Nxe5 {[%clk 0:00:46.9]} 38. h3 {[%clk 0:00:22]} 38... Nc4
{[%clk 0:00:46.6]} 39. Bc1 {[%clk 0:00:20.7]} 39... e5 {[%clk 0:00:45.9]} 40.
Kf3 {[%clk 0:00:21]} 40... Ke7 {[%clk 0:00:44.6]} 41. Ke4 {[%clk 0:00:21.4]}
41... Ke6 {[%clk 0:00:44.7]} 42. h4 {[%clk 0:00:20.9]} 42... Nd6+ {[%clk
0:00:44.3]} 43. Kd3 {[%clk 0:00:21]} 43... b5 {[%clk 0:00:44.4]} 44. Ne4 {[%clk
0:00:20.9]} 44... Nxe4 {[%clk 0:00:43.4]} 45. Kxe4 {[%clk 0:00:21.8]} 45... Nf6+
{[%clk 0:00:44]} 46. Kf3 {[%clk 0:00:21.6]} 46... Kd5 {[%clk 0:00:44.2]} 47. g5
{[%clk 0:00:21.6]} 47... Ne4 {[%clk 0:00:41.8]} 48. Bb2 {[%clk 0:00:21.5]} 48...
Nd6 {[%clk 0:00:41.7]} 49. Bc3 {[%clk 0:00:20.6]} 49... Nc4 {[%clk 0:00:41.7]}
50. Kg4 {[%clk 0:00:19.1]} 50... Ke4 {[%clk 0:00:40.8]} 51. h5 {[%clk
0:00:19.4]} 51... gxh5+ {[%clk 0:00:39.1]} 52. Kxh5 {[%clk 0:00:20.3]} 52... Kf5
{[%clk 0:00:39.6]} 53. Be1 {[%clk 0:00:17]} 53... Nxa3 {[%clk 0:00:38.6]} 54.
Bf2 {[%clk 0:00:15.6]} 54... g6+ {[%clk 0:00:35.9]} 55. Kh6 {[%clk 0:00:15]}
55... a6 {[%clk 0:00:36]} 56. Bc5 {[%clk 0:00:14.9]} 56... Nc4 {[%clk
0:00:36.5]} 57. Bf2 {[%clk 0:00:11.9]} 57... e4 {[%clk 0:00:36.5]} 58. Kg7
{[%clk 0:00:11.3]} 58... e3 {[%clk 0:00:36.9]} 59. Be1 {[%clk 0:00:11.5]} 59...
Na3 {[%clk 0:00:36.6]} 60. Kf7 {[%clk 0:00:12.4]} 60... Nc2 {[%clk 0:00:36.7]}
0-1

[Event "*** Titled Tuesday Blitz"]
[Site "Chess.com"]
[Date "2020.05.19"]
[Round "6"]
[White "esskeettit"]
[Black "Chessmatus"]
[Result "0-1"]
[WhiteElo "2314"]
[BlackElo "2486"]
[TimeControl "180+1"]
[EndTime "13:09:41 PDT"]
[Termination "Chessmatus won by checkmate"]

1. d4 {[%clk 0:03:00.9]} 1... Nf6 {[%clk 0:02:58.4]} 2. c4 {[%clk 0:03:00.5]}
2... g6 {[%clk 0:02:58.6]} 3. Nc3 {[%clk 0:03:00.2]} 3... d5 {[%clk 0:02:58.9]}
4. cxd5 {[%clk 0:03:01.1]} 4... Nxd5 {[%clk 0:02:59.2]} 5. e4 {[%clk 0:03:01.7]}
5... Nxc3 {[%clk 0:02:59.6]} 6. bxc3 {[%clk 0:03:02.6]} 6... Bg7 {[%clk
0:02:59.9]} 7. Be3 {[%clk 0:02:58.9]} 7... c5 {[%clk 0:02:59.7]} 8. Nf3 {[%clk
0:02:56.9]} 8... Bg4 {[%clk 0:02:58.1]} 9. Be2 {[%clk 0:02:56.2]} 9... O-O
{[%clk 0:02:51.9]} 10. O-O {[%clk 0:02:52.1]} 10... Nd7 {[%clk 0:02:13.9]} 11.
Rc1 {[%clk 0:02:39.5]} 11... Qa5 {[%clk 0:02:12.5]} 12. Qb3 {[%clk 0:02:37.5]}
12... Rab8 {[%clk 0:02:01.6]} 13. Bf4 {[%clk 0:02:32.1]} 13... e5 {[%clk
0:02:01.7]} 14. dxe5 {[%clk 0:02:31.8]} 14... Bxf3 {[%clk 0:01:54.9]} 15. Bxf3
{[%clk 0:02:31.4]} 15... Bxe5 {[%clk 0:01:55.1]} 16. Bh6 {[%clk 0:02:21.2]}
16... Rfe8 {[%clk 0:01:41.3]} 17. Rfd1 {[%clk 0:02:19.2]} 17... Qc7 {[%clk
0:01:41.2]} 18. h3 {[%clk 0:02:17.5]} 18... c4 {[%clk 0:01:36.9]} 19. Qb5 {[%clk
0:02:14.6]} 19... Nf6 {[%clk 0:01:27.9]} 20. Be2 {[%clk 0:02:06.3]} 20... Rbc8
{[%clk 0:01:23.1]} 21. Be3 {[%clk 0:01:54.4]} 21... Nxe4 {[%clk 0:01:18.8]} 22.
Bd4 {[%clk 0:01:41.5]} 22... Nxc3 {[%clk 0:01:12.5]} 23. Bxc3 {[%clk 0:01:37.3]}
23... Bxc3 {[%clk 0:01:12.4]} 24. Bg4 {[%clk 0:01:12.7]} 24... f5 {[%clk
0:00:58.8]} 25. Bxf5 {[%clk 0:01:09.8]} 25... gxf5 {[%clk 0:00:57.1]} 26. Rxc3
{[%clk 0:01:09]} 26... Re5 {[%clk 0:00:53.3]} 27. Rg3+ {[%clk 0:01:08.2]} 27...
Kh8 {[%clk 0:00:50.9]} 28. Qa4 {[%clk 0:00:47.9]} 28... b5 {[%clk 0:00:42.5]}
29. Qa6 {[%clk 0:00:44.9]} 29... Rf8 {[%clk 0:00:39.1]} 30. Qh6 {[%clk
0:00:41.9]} 30... Qf7 {[%clk 0:00:30.4]} 31. Rd7 {[%clk 0:00:37.3]} 31... Re7
{[%clk 0:00:30.2]} 32. Rd2 {[%clk 0:00:13.6]} 32... f4 {[%clk 0:00:30]} 33. Rg4
{[%clk 0:00:13.4]} 33... f3 {[%clk 0:00:30]} 34. gxf3 {[%clk 0:00:09.7]} 34...
Re1+ {[%clk 0:00:29.9]} 35. Kh2 {[%clk 0:00:09]} 35... c3 {[%clk 0:00:23.6]} 36.
Rc2 {[%clk 0:00:08.7]} 36... b4 {[%clk 0:00:21.1]} 37. Qg5 {[%clk 0:00:05.9]}
37... a5 {[%clk 0:00:15.9]} 38. a3 {[%clk 0:00:05.6]} 38... b3 {[%clk
0:00:12.1]} 39. Rxc3 {[%clk 0:00:05.6]} 39... b2 {[%clk 0:00:12.6]} 40. Qd2
{[%clk 0:00:04.2]} 40... b1=Q {[%clk 0:00:11.6]} 41. Qd4+ {[%clk 0:00:04.1]}
41... Qf6 {[%clk 0:00:06]} 42. Rc8 {[%clk 0:00:04.2]} 42... Rh1+ {[%clk
0:00:04.3]} 43. Kg2 {[%clk 0:00:01.8]} 43... Qg1# {[%clk 0:00:05.2]} 0-1

[Event "*** Titled Tuesday Blitz"]
[Site "Chess.com"]
[Date "2020.05.19"]
[Round "6"]
[White "martabartel"]
[Black "ClassyEl"]
[Result "0-1"]
[WhiteElo "2310"]
[BlackElo "2481"]
[TimeControl "180+1"]
[EndTime "13:09:42 PDT"]
[Termination "ClassyEl won by resignation"]

1. d4 {[%clk 0:03:00.9]} 1... Nf6 {[%clk 0:02:59.5]} 2. Nf3 {[%clk 0:03:00.4]}
2... e6 {[%clk 0:02:59.8]} 3. g3 {[%clk 0:02:57.2]} 3... b6 {[%clk 0:02:56.7]}
4. Bg2 {[%clk 0:02:57]} 4... Bb7 {[%clk 0:02:57.3]} 5. O-O {[%clk 0:02:56.9]}
5... Be7 {[%clk 0:02:57.8]} 6. b3 {[%clk 0:02:56.4]} 6... O-O {[%clk 0:02:57.6]}
7. Bb2 {[%clk 0:02:56.6]} 7... c5 {[%clk 0:02:57.9]} 8. dxc5 {[%clk 0:02:48]}
8... Bxc5 {[%clk 0:02:54.5]} 9. c4 {[%clk 0:02:47.6]} 9... d5 {[%clk 0:02:51]}
10. Ne5 {[%clk 0:02:42.2]} 10... Nc6 {[%clk 0:02:44.3]} 11. Nxc6 {[%clk
0:02:39.1]} 11... Bxc6 {[%clk 0:02:44.4]} 12. Nc3 {[%clk 0:02:37]} 12... Rc8
{[%clk 0:02:30.2]} 13. cxd5 {[%clk 0:02:30.4]} 13... exd5 {[%clk 0:02:30.1]} 14.
Na4 {[%clk 0:02:01.7]} 14... Bxa4 {[%clk 0:02:15.1]} 15. bxa4 {[%clk 0:02:01.4]}
15... d4 {[%clk 0:02:09.5]} 16. Qd3 {[%clk 0:01:57.2]} 16... Qd6 {[%clk
0:01:58.7]} 17. Rfd1 {[%clk 0:01:54.8]} 17... Rfd8 {[%clk 0:01:58.5]} 18. Rac1
{[%clk 0:01:51.1]} 18... h6 {[%clk 0:01:48]} 19. Qb5 {[%clk 0:01:38.9]} 19...
Qe6 {[%clk 0:01:41.4]} 20. a5 {[%clk 0:01:28.8]} 20... Qxa2 {[%clk 0:01:34]} 21.
axb6 {[%clk 0:01:26.2]} 21... Bxb6 {[%clk 0:01:15.4]} 22. Bb7 {[%clk 0:00:45.5]}
22... Rxc1 {[%clk 0:01:07.8]} 23. Rxc1 {[%clk 0:00:45.3]} 23... Qe6 {[%clk
0:00:51.1]} 24. Qd3 {[%clk 0:00:40.8]} 24... Nd7 {[%clk 0:00:32]} 25. Ba3 {[%clk
0:00:38]} 25... Ne5 {[%clk 0:00:31.7]} 26. Qe4 {[%clk 0:00:37.9]} 26... d3
{[%clk 0:00:23.1]} 27. exd3 {[%clk 0:00:35.8]} 27... Nxd3 {[%clk 0:00:23]} 28.
Qxe6 {[%clk 0:00:31.1]} 28... fxe6 {[%clk 0:00:19.2]} 29. Rc2 {[%clk 0:00:24.3]}
29... Nxf2 {[%clk 0:00:19.1]} 30. Kg2 {[%clk 0:00:19.6]} 30... Ng4 {[%clk
0:00:18.8]} 31. Kf3 {[%clk 0:00:17.2]} 31... h5 {[%clk 0:00:16.7]} 32. h3 {[%clk
0:00:16.8]} 32... Rd3+ {[%clk 0:00:16.3]} 33. Ke4 {[%clk 0:00:16.1]} 33... Re3+
{[%clk 0:00:15]} 34. Kf4 {[%clk 0:00:15.9]} 34... Rxa3 {[%clk 0:00:12.2]} 35.
hxg4 {[%clk 0:00:16.1]} 35... Ra4+ {[%clk 0:00:12.6]} 36. Ke5 {[%clk 0:00:15.5]}
36... Rxg4 {[%clk 0:00:12]} 37. Be4 {[%clk 0:00:14.1]} 37... Rg5+ {[%clk
0:00:06.9]} 38. Kxe6 {[%clk 0:00:13.6]} 38... Rc5 {[%clk 0:00:06.7]} 39. Rxc5
{[%clk 0:00:11.3]} 39... Bxc5 {[%clk 0:00:07]} 40. Bc6 {[%clk 0:00:10.8]} 40...
Bf2 {[%clk 0:00:06.3]} 41. g4 {[%clk 0:00:06.6]} 41... hxg4 {[%clk 0:00:05]} 42.
Kf5 {[%clk 0:00:06.4]} 42... g3 {[%clk 0:00:05.4]} 43. Kg4 {[%clk 0:00:05.8]}
43... Kf7 {[%clk 0:00:05.8]} 44. Kf3 {[%clk 0:00:05.8]} 44... Kf6 {[%clk
0:00:06]} 45. Kg2 {[%clk 0:00:06]} 45... a5 {[%clk 0:00:06.6]} 46. Kf3 {[%clk
0:00:05.4]} 46... Ke5 {[%clk 0:00:07.5]} 0-1

[Event "*** Titled Tuesday Blitz"]
[Site "Chess.com"]
[Date "2020.05.19"]
[Round "6"]
[White "EugeneRougon"]
[Black "Shukh_Nikolay"]
[Result "0-1"]
[WhiteElo "2742"]
[BlackElo "2544"]
[TimeControl "180+1"]
[EndTime "13:09:43 PDT"]
[Termination "Shukh_Nikolay won by resignation"]

1. e4 {[%clk 0:03:00.9]} 1... e5 {[%clk 0:02:59.1]} 2. Nf3 {[%clk 0:03:00.9]}
2... Nc6 {[%clk 0:02:59]} 3. Bb5 {[%clk 0:03:01.5]} 3... a6 {[%clk 0:02:58.7]}
4. Ba4 {[%clk 0:03:02.1]} 4... Nf6 {[%clk 0:02:58.3]} 5. O-O {[%clk 0:03:02.3]}
5... Nxe4 {[%clk 0:02:57.5]} 6. d4 {[%clk 0:02:59.8]} 6... b5 {[%clk 0:02:57]}
7. Bb3 {[%clk 0:03:00.4]} 7... d5 {[%clk 0:02:57]} 8. dxe5 {[%clk 0:02:58.4]}
8... Be6 {[%clk 0:02:56.8]} 9. c3 {[%clk 0:02:54.7]} 9... Nc5 {[%clk 0:02:54]}
10. Be3 {[%clk 0:02:40.6]} 10... Be7 {[%clk 0:02:47.8]} 11. Nbd2 {[%clk
0:02:32.8]} 11... Bg4 {[%clk 0:02:41.8]} 12. h3 {[%clk 0:02:12.5]} 12... Bh5
{[%clk 0:02:41]} 13. g4 {[%clk 0:02:03.4]} 13... Bg6 {[%clk 0:02:40.2]} 14. Nd4
{[%clk 0:02:01.9]} 14... Nxd4 {[%clk 0:02:19.7]} 15. cxd4 {[%clk 0:01:59.6]}
15... Nxb3 {[%clk 0:02:17.7]} 16. axb3 {[%clk 0:01:51.6]} 16... h5 {[%clk
0:02:16.8]} 17. f4 {[%clk 0:01:42.6]} 17... hxg4 {[%clk 0:02:15.8]} 18. f5
{[%clk 0:01:40.6]} 18... Bg5 {[%clk 0:01:38.4]} 19. fxg6 {[%clk 0:01:19.8]}
19... Bxe3+ {[%clk 0:01:37.5]} 20. Kg2 {[%clk 0:01:19.6]} 20... Qh4 {[%clk
0:01:06.9]} 21. Qxg4 {[%clk 0:01:16.9]} 21... Qxg4+ {[%clk 0:01:05.3]} 22. hxg4
{[%clk 0:01:17.8]} 22... Bxd2 {[%clk 0:00:50.1]} 23. Rxf7 {[%clk 0:01:17.8]}
23... O-O-O {[%clk 0:00:33.6]} 24. Rxa6 {[%clk 0:01:09.4]} 24... Kb7 {[%clk
0:00:33]} 25. Re6 {[%clk 0:01:01]} 25... Bh6 {[%clk 0:00:27.7]} 26. Ree7 {[%clk
0:00:56.4]} 26... Rc8 {[%clk 0:00:27.7]} 27. Kg3 {[%clk 0:00:30.6]} 27... Rhe8
{[%clk 0:00:26.6]} 28. Kh4 {[%clk 0:00:25.7]} 28... Rxe7 {[%clk 0:00:25.9]} 29.
Rxe7 {[%clk 0:00:26.6]} 29... Be3 {[%clk 0:00:25.5]} 30. Rxg7 {[%clk 0:00:24.8]}
30... Bxd4 {[%clk 0:00:25.4]} 31. Re7 {[%clk 0:00:25.4]} 31... Bxb2 {[%clk
0:00:23.9]} 32. g7 {[%clk 0:00:24.3]} 32... Rd8 {[%clk 0:00:20.4]} 33. Kh5
{[%clk 0:00:15.8]} 33... d4 {[%clk 0:00:20.2]} 34. Rd7 {[%clk 0:00:14.9]} 34...
Re8 {[%clk 0:00:11.7]} 35. Kg6 {[%clk 0:00:11.3]} 35... Kc6 {[%clk 0:00:11.6]}
36. Rf7 {[%clk 0:00:09]} 36... Ba3 {[%clk 0:00:10.3]} 37. e6 {[%clk 0:00:08.1]}
37... d3 {[%clk 0:00:06.7]} 38. e7 {[%clk 0:00:07.1]} 38... d2 {[%clk
0:00:06.6]} 39. Rf8 {[%clk 0:00:07.2]} 39... d1=Q {[%clk 0:00:04.5]} 40. g8=Q
{[%clk 0:00:07.1]} 40... Qxg4+ {[%clk 0:00:04.1]} 41. Kf7 {[%clk 0:00:07.4]}
41... Qxg8+ {[%clk 0:00:04.5]} 42. Kxg8 {[%clk 0:00:05.7]} 42... Rxf8+ {[%clk
0:00:03]} 43. exf8=Q {[%clk 0:00:06.1]} 43... Bxf8 {[%clk 0:00:02.5]} 44. Kxf8
{[%clk 0:00:07]} 44... Kc5 {[%clk 0:00:03.1]} 45. Ke7 {[%clk 0:00:07.9]} 45...
Kb4 {[%clk 0:00:03.6]} 46. Kd7 {[%clk 0:00:08.8]} 46... Kxb3 {[%clk 0:00:04.4]}
47. Kxc7 {[%clk 0:00:09]} 47... b4 {[%clk 0:00:05.3]} 0-1

[Event "*** Titled Tuesday Blitz"]
[Site "Chess.com"]
[Date "2020.05.19"]
[Round "6"]
[White "dosto07"]
[Black "ErikBlomqvist"]
[Result "1-0"]
[WhiteElo "2161"]
[BlackElo "2265"]
[TimeControl "180+1"]
[EndTime "13:09:43 PDT"]
[Termination "dosto07 won on time"]

1. e4 {[%clk 0:03:00.9]} 1... c5 {[%clk 0:02:58.3]} 2. Nf3 {[%clk 0:03:00.7]}
2... e6 {[%clk 0:02:58.6]} 3. c3 {[%clk 0:02:59.9]} 3... d5 {[%clk 0:02:54.4]}
4. exd5 {[%clk 0:02:59.7]} 4... Qxd5 {[%clk 0:02:55.3]} 5. d4 {[%clk 0:02:59.7]}
5... Nf6 {[%clk 0:02:55.9]} 6. Be3 {[%clk 0:02:57.8]} 6... cxd4 {[%clk
0:02:50.1]} 7. cxd4 {[%clk 0:02:57.5]} 7... Bb4+ {[%clk 0:02:41.8]} 8. Nc3
{[%clk 0:02:56.9]} 8... O-O {[%clk 0:02:42]} 9. Bd3 {[%clk 0:02:53.8]} 9... b6
{[%clk 0:02:39.7]} 10. O-O {[%clk 0:02:51.5]} 10... Bxc3 {[%clk 0:02:39.4]} 11.
bxc3 {[%clk 0:02:51.4]} 11... Ba6 {[%clk 0:02:39.8]} 12. Bxa6 {[%clk 0:02:42.5]}
12... Nxa6 {[%clk 0:02:40.7]} 13. Ne5 {[%clk 0:02:27.5]} 13... Rac8 {[%clk
0:02:20.5]} 14. Qa4 {[%clk 0:02:14.7]} 14... Qb7 {[%clk 0:02:20.4]} 15. c4
{[%clk 0:02:12.1]} 15... Rfd8 {[%clk 0:02:04.8]} 16. Rfd1 {[%clk 0:02:08.6]}
16... Ne4 {[%clk 0:01:45.3]} 17. Rac1 {[%clk 0:01:55.3]} 17... Nd6 {[%clk
0:01:31.4]} 18. c5 {[%clk 0:01:49.6]} 18... bxc5 {[%clk 0:01:28.3]} 19. dxc5
{[%clk 0:01:46.3]} 19... Qb5 {[%clk 0:01:21.6]} 20. Qf4 {[%clk 0:01:39.8]} 20...
Nf5 {[%clk 0:01:18.4]} 21. Rxd8+ {[%clk 0:01:23.1]} 21... Rxd8 {[%clk
0:01:18.2]} 22. c6 {[%clk 0:01:22.8]} 22... f6 {[%clk 0:00:20.5]} 23. Nf3 {[%clk
0:01:12.6]} 23... Qxc6 {[%clk 0:00:19.1]} 24. g4 {[%clk 0:01:03.4]} 24... Nxe3
{[%clk 0:00:19.2]} 25. Qxe3 {[%clk 0:00:54.3]} 25... Qd7 {[%clk 0:00:18.3]} 26.
h3 {[%clk 0:00:46.7]} 26... Nb4 {[%clk 0:00:17.8]} 27. Re1 {[%clk 0:00:38.3]}
27... e5 {[%clk 0:00:15.7]} 28. a3 {[%clk 0:00:34.4]} 28... Nd5 {[%clk
0:00:14.7]} 29. Qb3 {[%clk 0:00:27.5]} 29... Kh8 {[%clk 0:00:13.5]} 30. Rd1
{[%clk 0:00:27.2]} 30... Qc6 {[%clk 0:00:06.8]} 31. Nh4 {[%clk 0:00:25.5]} 31...
g6 {[%clk 0:00:05.6]} 32. Ng2 {[%clk 0:00:24.7]} 32... Rd7 {[%clk 0:00:04.2]}
33. Ne3 {[%clk 0:00:21.8]} 33... Nf4 {[%clk 0:00:04.5]} 34. Rxd7 {[%clk
0:00:17.7]} 34... Qxd7 {[%clk 0:00:05.4]} 35. Qb8+ {[%clk 0:00:16.6]} 35... Kg7
{[%clk 0:00:05.5]} 36. Kh2 {[%clk 0:00:13.5]} 36... Qd2 {[%clk 0:00:04.7]} 37.
Kg3 {[%clk 0:00:10.9]} 37... Ne2+ {[%clk 0:00:03.2]} 38. Kf3 {[%clk 0:00:10]}
38... Nf4 {[%clk 0:00:02.5]} 39. Qxa7+ {[%clk 0:00:08.9]} 39... Kh6 {[%clk
0:00:02.5]} 40. Qe7 {[%clk 0:00:08.4]} 40... Qd4 {[%clk 0:00:01.2]} 41. Qf8+
{[%clk 0:00:07.9]} 41... Kg5 {[%clk 0:00:01.1]} 42. h4+ {[%clk 0:00:03.7]} 42...
Kxh4 {[%clk 0:00:01.6]} 43. Qh6+ {[%clk 0:00:03.6]} 43... Nh5 {[%clk 0:00:02.5]}
44. gxh5 {[%clk 0:00:03.1]} 44... g5 {[%clk 0:00:02.5]} 45. Qxf6 {[%clk
0:00:02.8]} 45... Qe4+ {[%clk 0:00:02.1]} 46. Kxe4 {[%clk 0:00:01.9]} 1-0